[Event "Amsterdam Chess Open 2024"]
[Site "Amsterdam"]
[Date "2024.11.03"]
[Round "6.9"]
[White "Van den Doel, Erik"]
[Black "Kazarian, Anna-Maja"]
[Result "1-0"]
[ECO "D45"]
[WhiteElo "2557"]
[BlackElo "2178"]
[Annotator "TA"]
[PlyCount "79"]
[EventDate "2024.10.31"]
[EventType "swiss"]
[EventCountry "NED"]
[SourceTitle "playchess.com"]
[Source "ChessBase"]
[SourceQuality "1"]
[TimeControl "5400+30"]

{[%evp 16,79,0,0,-13,-5,-8,-28,-27,-47,-22,-23,-41,-39,-16,-29,-19,-90,-68,-108,-116,-127,-147,-163,-138,-160,-148,-171,-66,-46,-46,-52,-54,-87,130,129,182,172,172,-114,217,218,220,203,726,710,743,747,1292,889,29991,29992,29992,29993,29993,29990,29990,1937,2091,2127,29991,29992,29994,29995,29995,29996]} 1. d4 {[%emt 0:00:03]} d5 {[%emt 0:00:06]} 2. Nf3 {[%emt 0:00:03]} Nf6 {[%emt 0:00:04]} 3. c4 {[%emt 0:00:51]} c6 {[%emt 0:00:05]} 4. Nc3 {[%emt 0:00:03]} e6 {[%emt 0:00:18]} 5. e3 {[%emt 0:04:41]} Nbd7 {[%emt 0:00:51]} 6. Qc2 {[%emt 0:01:59]} Be7 {[%emt 0:07:42]} 7. Bd3 {[%emt 0:02:35]} dxc4 {[%emt 0:03:15]} 8. Bxc4 {[%emt 0:00:08]} b5 {[%emt 0:00:07]} 9. Be2 {[%emt 0:14:16]} Bb7 {[%emt 0:04:27]} 10. O-O {[%emt 0:00:46]} a6 {[%emt 0:01:48]} 11. e4 {[%emt 0:09:01]} c5 {[%emt 0:07:41] Black has an edge.} 12. d5 {[%emt 0:01:09]} exd5 {[%emt 0:01:37]} 13. Nxd5 {[%emt 0:05:06]} Nxd5 {[%emt 0:21:22]} 14. exd5 {[%emt 0:00:28]} Nb6 {[%emt 0:04:48][%cal Oc5c4]} 15. Rd1 {[%emt 0:23:53][%cal Od5d6]} O-O {[%emt 0:16:02][%cal Of8e8]} 16. Bd3 {[%emt 0:02:14]} (16. d6 $11 Bxd6 17. Ng5) 16... g6 $17 {[%emt 0:01:59][%cal Oc5c4]} 17. Bh6 {[%emt 0:09:33]} Re8 {[%emt 0:00:06][%cal Oe7f6]} 18. h4 {[%emt 0:05:18]} c4 {[%emt 0:01:13]} (18... Nxd5 19. Be4 Qd6 (19... Bxh4 $2 20. Bxd5 Bxd5 21. Qxc5 $18) 20. Rd2 $15) (18... Qxd5 19. Bxg6 Qc4 20. Bxh7+ Kh8 21. Ne5 Qxc2 22. Bxc2 Bxh4 23. Nxf7+ Kg8 24. Nd6 $16) 19. Be2 {[%emt 0:04:16]} Bxh4 {[%emt 0:07:58]} 20. d6 {[%emt 0:00:18][%cal Oa2a4,Bd5d6,Bd6d7][%mdl 32]} (20. Nxh4 Qxh4 21. Qd2 Rxe2 (21... Nxd5 22. Bg5 $11) 22. Qxe2 Qxh6) 20... Bf6 {[%emt 0:02:14]} 21. Nh2 {[%emt 0:00:29][%cal Bf3h2,Bh2g4,Bg4h6][%mdl 32]} Bg5 {[%emt 0:03:52]} (21... Be4 $19 22. Qd2 Na4) 22. Ng4 $15 {[%emt 0:01:29][%cal Oc2c3]} Bxh6 {[%emt 0:00:04]} 23. Nxh6+ {[%emt 0:00:04]} Kg7 {[%emt 0:00:02]} 24. Ng4 {[%emt 0:01:34]} Qg5 $2 {[%emt 0:03:08]} (24... h5 $1 $17 {[%cal Rh5g4]} 25. Qc3+ f6) 25. d7 $1 $16 {[%emt 0:03:03][%mdl 1024] White has strong compensation.} Red8 {[%emt 0:10:18]} (25... Rxe2 $16 {might work better.} 26. Qxe2 Bd5) 26. Qc3+ $18 {[%emt 0:05:07]} f6 {[%emt 0:00:03][%cal Ob6d5] [#] And now ...Nd5! would win.} 27. Qa3 $2 {[%emt 0:00:03]} (27. Qd4 Nd5 (27... Rxd7 $2 28. Qxb6 Re7 29. Ne3 $18) (27... Nxd7 28. Qxd7+ Rxd7 29. Rxd7+ Kf8 30. Rxb7 $11) 28. Bf3 Rxd7 $17) (27. Rd6 $1 $18 {[%cal Rd6b6]} Nd5 (27... Nxd7 $2 28. Rad1 $18) 28. Qd4) 27... f5 $2 {[%emt 0:02:14][%mdl 8192] [#] Loses the game.} (27... Nd5 $1 $17 {stays on course.} 28. Bf3 (28. Qd6 $2 Qf5 $19) 28... Rxd7) 28. f4 $1 {[%emt 0:03:00][%mdl 512]} Qh4 {[%emt 0:00:04]} 29. Qc3+ {[%emt 0:00:30]} Kg8 $2 {[%emt 0:00:52]} (29... Kf7 30. Ne5+ Kg8) 30. Nf6+ {[%emt 0:00:15]} Kf7 {[%emt 0:00:03][%cal Bg8f7,Bf7g7,Bg7h8][%mdl 32]} 31. Rd6 {[%emt 0:00:07]} Na4 {[%emt 0:01:03]} 32. Qe3 {[%emt 0:00:50] White wants to mate with Qe6+.} Nxb2 {[%emt 0:00:29]} 33. Qe6+ {[%emt 0:00:28]} Kg7 {[%emt 0:00:02]} 34. Qe7+ {[%emt 0:00:11]} Kh8 {[%emt 0:00:03]} 35. Qe5 {[%emt 0:00:10]} Qh6 {[%emt 0:01:13]} 36. Qxb2 {[%emt 0:01:03] Active counter play!} (36. Re6 $142 Nd3 37. Bxd3 Rxd7 38. Re8+ (38. Nxd7+ Qg7 $18) 38... Rxe8 39. Qxe8+ (39. Nxd7+ $2 {is the wrong capture.} Rxe5 40. Nxe5 Qxf4 $19) 39... Kg7 40. Nxd7 Qh1+ 41. Kxh1) 36... Qg7 {[%emt 0:00:28]} 37. Kf2 {[%emt 0:00:46]} g5 {[%emt 0:00:36]} 38. Rh1 {[%emt 0:00:14] White mates.} h6 {[%emt 0:00:04] [#]} 39. Rxh6+ $3 {[%emt 0:00:51][%mdl 512]} Qxh6 {[%emt 0:00:11]} 40. Ne8+ {[%emt 0:00:04] Weighted Error Value: White=0.20 (precise) /Black=0.89.  Loses game:     	---       	Black=1      Missed win:     	White=1     	---        Mistake:       	White=1     	Black=4      Inaccurate:     	White=1     	---        OK:         	White=7     	Black=5      Best:        	White=2     	Black=5      Strong:       	White=1     	---} 1-0

[Event "Amsterdam Chess Open 2024"]
[Site "Amsterdam"]
[Date "2024.11.03"]
[Round "6.10"]
[White "IJzermans, Gijs"]
[Black "Saine, Zachary"]
[Result "1/2-1/2"]
[ECO "E17"]
[WhiteElo "2098"]
[BlackElo "2038"]
[Annotator "RC"]
[PlyCount "97"]
[EventDate "2024.10.31"]
[EventType "swiss"]
[EventCountry "NED"]
[SourceTitle "playchess.com"]
[Source "ChessBase"]
[SourceQuality "1"]
[TimeControl "5400+30"]

1. c4 {[%emt 0:00:03]} e6 {[%emt 0:01:02]} 2. g3 {[%emt 0:00:14]} d5 {[%emt 0:00:10]} 3. Bg2 {[%emt 0:00:31]} Nf6 {[%emt 0:00:08]} 4. Nf3 {[%emt 0:00:09]} Be7 {[%emt 0:00:10]} 5. O-O {[%emt 0:00:13]} O-O {[%emt 0:00:09]} 6. b3 {[%emt 0:00:34]} b6 {[%emt 0:00:15]} 7. Bb2 {[%emt 0:00:44]} Bb7 {[%emt 0:00:26]} 8. d4 {[%emt 0:03:00]} dxc4 {[%emt 0:06:07]} 9. bxc4 {[%emt 0:00:07]} c5 {[%emt 0:00:14]} 10. e3 {[%emt 0:05:45]} Nbd7 {[%emt 0:01:06]} 11. Nbd2 {[%emt 0:06:48]} a6 {[%emt 0:08:02]} 12. Qb3 {[%emt 0:04:31]} b5 {[%emt 0:04:42]} 13. Rfd1 {[%emt 0:13:39]} b4 {[%emt 0:03:56]} 14. Ne5 {[%emt 0:15:40]} Bxg2 {[%emt 0:02:10]} 15. Kxg2 {[%emt 0:00:04]} Qc7 {[%emt 0:10:09]} 16. Nxd7 {[%emt 0:06:06]} Qxd7 {[%emt 0:04:03]} 17. Kg1 {[%emt 0:03:23]} Qb7 {[%emt 0:01:33]} 18. Qd3 {[%emt 0:01:39]} Rfd8 {[%emt 0:02:12]} 19. Qe2 {[%emt 0:00:42]} a5 {[%emt 0:14:05]} 20. Rac1 {[%emt 0:06:59]} a4 {[%emt 0:02:26]} 21. Qf3 {[%emt 0:04:15]} Qxf3 {[%emt 0:02:15]} 22. Nxf3 {[%emt 0:00:05]} Nd7 {[%emt 0:08:03]} 23. Nd2 {[%emt 0:10:37]} f5 {[%emt 0:07:59]} 24. Nf3 {[%emt 0:05:24]} Rac8 {[%emt 0:00:45]} 25. d5 {[%emt 0:00:57]} exd5 {[%emt 0:01:24]} 26. Rxd5 {[%emt 0:00:14]} g6 {[%emt 0:00:53]} 27. Rcd1 {[%emt 0:05:15]} Nb6 {[%emt 0:00:20]} 28. Rxd8+ {[%emt 0:00:02]} Rxd8 {[%emt 0:00:05]} 29. Rxd8+ {[%emt 0:00:31]} Bxd8 {[%emt 0:00:02]} 30. Nd2 {[%emt 0:00:19]} Kf7 {[%emt 0:00:19]} 31. Kf1 {[%emt 0:00:04]} Bf6 {[%emt 0:04:33]} 32. Bxf6 {[%emt 0:00:04]} Kxf6 {[%emt 0:00:03]} 33. Ke2 {[%emt 0:00:21]} a3 {[%emt 0:04:40]} 34. Kd3 {[%emt 0:00:50]} Na4 {[%emt 0:00:29]} 35. Kc2 {[%emt 0:01:01]} Ke6 {[%emt 0:02:59]} 36. f4 {[%emt 0:00:48]} Nc3 {[%emt 0:00:32]} 37. Kb3 {[%emt 0:00:27]} h6 {[%emt 0:00:25]} 38. Nf3 {[%emt 0:03:55]} Nd1 {[%emt 0:00:52]} 39. Ne5 {[%emt 0:00:22]} g5 {[%emt 0:00:21]} 40. Nd3 {[%emt 0:00:45]} Kd6 {[%emt 0:00:07]} 41. fxg5 {[%emt 0:01:18]} hxg5 {[%emt 0:00:16]} 42. h4 {[%emt 0:00:44]} gxh4 {[%emt 0:00:21]} 43. gxh4 {[%emt 0:00:04]} Nxe3 {[%emt 0:00:05]} 44. h5 {[%emt 0:00:36]} Ng4 {[%emt 0:00:43]} 45. Kc2 {[%emt 0:00:51]} Ne3+ {[%emt 0:08:52]} 46. Kb3 {[%emt 0:00:08]} Ng4 {[%emt 0:00:42]} 47. Kc2 {[%emt 0:00:01]} Ne3+ {[%emt 0:02:04]} 48. Kb3 {[%emt 0:00:02]} Ng4 {[%emt 0:00:19]} 49. Kc2 {[%emt 0:00:07]} 1/2-1/2

[Event "Amsterdam Chess Open 2024"]
[Site "Amsterdam"]
[Date "2024.11.03"]
[Round "6.13"]
[White "Eefting, Martijn"]
[Black "Van der Meiden, Dirk"]
[Result "0-1"]
[ECO "A65"]
[WhiteElo "1932"]
[BlackElo "1968"]
[Annotator "RC"]
[PlyCount "53"]
[EventDate "2024.10.31"]
[EventType "swiss"]
[EventCountry "NED"]
[SourceTitle "playchess.com"]
[Source "ChessBase"]
[SourceQuality "1"]
[TimeControl "5400+30"]

1. d4 {[%emt 0:00:01]} Nf6 {[%emt 0:00:08]} 2. c4 {[%emt 0:00:03]} e6 {[%emt 0:00:14]} 3. Nc3 {[%emt 0:00:04]} c5 {[%emt 0:00:12]} 4. d5 {[%emt 0:00:08]} exd5 {[%emt 0:00:05]} 5. cxd5 {[%emt 0:00:10]} d6 {[%emt 0:00:05]} 6. e4 {[%emt 0:00:54]} g6 {[%emt 0:00:08]} 7. Nge2 {[%emt 0:00:41]} Bg7 {[%emt 0:02:20]} 8. Ng3 {[%emt 0:00:06]} O-O {[%emt 0:00:42]} 9. Be2 {[%emt 0:00:05]} Na6 {[%emt 0:03:10]} 10. O-O {[%emt 0:01:00]} Nc7 {[%emt 0:00:40]} 11. a4 {[%emt 0:04:58]} a6 {[%emt 0:02:35]} 12. Bg5 {[%emt 0:01:53]} h6 {[%emt 0:00:38]} 13. Be3 {[%emt 0:00:06]} Re8 {[%emt 0:00:26]} 14. Qd2 {[%emt 0:01:43]} Kh7 {[%emt 0:00:20]} 15. f3 {[%emt 0:06:53]} Rb8 {[%emt 0:00:39]} 16. Rab1 {[%emt 0:06:27]} b5 {[%emt 0:02:09]} 17. axb5 {[%emt 0:01:37]} axb5 {[%emt 0:00:22]} 18. b3 {[%emt 0:01:20]} b4 {[%emt 0:00:55]} 19. Na4 {[%emt 0:04:22]} Nfxd5 {[%emt 0:02:51]} 20. Bxc5 {[%emt 0:12:36]} dxc5 {[%emt 0:01:04]} 21. Nxc5 {[%emt 0:01:05]} Nc3 {[%emt 0:01:53]} 22. Rbd1 {[%emt 0:08:37]} Nxd1 {[%emt 0:00:57]} 23. Rxd1 {[%emt 0:00:02]} Qxd2 {[%emt 0:00:27]} 24. Rxd2 {[%emt 0:00:01]} Be6 {[%emt 0:01:15]} 25. Nxe6 {[%emt 0:01:08]} Nxe6 {[%emt 0:00:15]} 26. Bc4 {[%emt 0:01:16]} Red8 {[%emt 0:00:20]} 27. Bd5 {[%emt 0:04:10]} 0-1

[Event "Amsterdam Chess Open 2024"]
[Site "Amsterdam"]
[Date "2024.11.03"]
[Round "6.14"]
[White "Nies, Levi"]
[Black "Verschoor, Scott"]
[Result "1-0"]
[ECO "B23"]
[WhiteElo "1859"]
[BlackElo "1966"]
[Annotator "RC"]
[PlyCount "111"]
[EventDate "2024.10.31"]
[EventType "swiss"]
[EventCountry "NED"]
[SourceTitle "playchess.com"]
[Source "ChessBase"]
[SourceQuality "1"]
[TimeControl "5400+30"]

1. e4 {[%emt 0:00:15]} c5 {[%emt 0:00:06]} 2. Nc3 {[%emt 0:00:35]} d6 {[%emt 0:00:05]} 3. Bc4 {[%emt 0:01:02]} Nc6 {[%emt 0:00:17]} 4. d3 {[%emt 0:00:09]} e6 {[%emt 0:00:27]} 5. f4 {[%emt 0:00:39]} g6 {[%emt 0:00:11]} 6. Nf3 {[%emt 0:00:46]} Bg7 {[%emt 0:00:08]} 7. O-O {[%emt 0:00:03]} Nge7 {[%emt 0:00:06]} 8. Qe1 {[%emt 0:00:34]} O-O {[%emt 0:00:16]} 9. Qh4 {[%emt 0:00:49]} Nd4 {[%emt 0:01:34]} 10. Bb3 {[%emt 0:01:38]} Nxb3 {[%emt 0:00:34]} 11. axb3 {[%emt 0:00:06]} Nc6 {[%emt 0:00:43]} 12. Qh3 {[%emt 0:04:20]} Nd4 {[%emt 0:01:56]} 13. Nxd4 {[%emt 0:01:15]} cxd4 {[%emt 0:00:07]} 14. Nb5 {[%emt 0:03:15]} Qb6 {[%emt 0:04:16]} 15. Na3 {[%emt 0:00:16]} Qc5 {[%emt 0:00:27]} 16. Bd2 {[%emt 0:01:04]} d5 {[%emt 0:07:28]} 17. e5 {[%emt 0:01:29]} a5 {[%emt 0:01:51]} 18. Kh1 {[%emt 0:05:40]} Bd7 {[%emt 0:05:20]} 19. Qh4 {[%emt 0:03:38]} f6 {[%emt 0:04:20]} 20. Rf3 {[%emt 0:04:08]} Rf7 {[%emt 0:00:35]} 21. Qe1 {[%emt 0:09:58]} fxe5 {[%emt 0:02:26]} 22. fxe5 {[%emt 0:00:10]} Qc7 {[%emt 0:08:45]} 23. Rxf7 {[%emt 0:01:25]} Kxf7 {[%emt 0:00:05]} 24. Bf4 {[%emt 0:01:16]} Kg8 {[%emt 0:01:05]} 25. Qe2 {[%emt 0:01:22]} Rf8 {[%emt 0:00:40]} 26. Bg3 {[%emt 0:02:55]} Rf5 {[%emt 0:01:42]} 27. Re1 {[%emt 0:00:19]} b5 {[%emt 0:03:09]} 28. Nb1 {[%emt 0:01:38]} b4 {[%emt 0:01:03]} 29. h3 {[%emt 0:00:51]} Rf8 {[%emt 0:03:09]} 30. Rc1 {[%emt 0:05:52]} Rf5 {[%emt 0:03:09]} 31. Re1 {[%emt 0:00:14]} Bh6 {[%emt 0:13:18]} 32. Qd1 {[%emt 0:11:12]} Bg7 {[%emt 0:01:22]} 33. Qe2 {[%emt 0:15:55]} Rf8 {[%emt 0:02:25]} 34. Qd2 {[%emt 0:02:43]} Rf5 {[%emt 0:09:07]} 35. Kh2 {[%emt 0:00:04]} h5 {[%emt 0:02:03]} 36. h4 {[%emt 0:04:29]} Kf7 {[%emt 0:01:57]} 37. Bf4 {[%emt 0:01:08]} Kg8 {[%emt 0:02:11]} 38. g3 {[%emt 0:02:14]} Bc8 {[%emt 0:02:52]} 39. c3 {[%emt 0:02:11]} dxc3 {[%emt 0:00:43]} 40. bxc3 {[%emt 0:01:31]} bxc3 {[%emt 0:00:11]} 41. Qxc3 {[%emt 0:00:23]} Qxc3 {[%emt 0:00:56]} 42. Nxc3 {[%emt 0:00:01]} Rf7 {[%emt 0:00:11]} 43. Ra1 {[%emt 0:06:38]} Rb7 {[%emt 0:02:49]} 44. Rxa5 {[%emt 0:00:31]} Rxb3 {[%emt 0:01:12]} 45. Nb5 {[%emt 0:03:31]} Bf8 {[%emt 0:06:13]} 46. Nd6 {[%emt 0:02:24]} Rb8 {[%emt 0:06:15]} 47. Ra7 {[%emt 0:00:44]} Kh8 {[%emt 0:02:20]} 48. Ne8 {[%emt 0:00:31]} Bb7 {[%emt 0:01:00]} 49. Nf6 {[%emt 0:00:26]} Bc5 {[%emt 0:01:12]} 50. Ra2 {[%emt 0:00:36]} Bc6 {[%emt 0:00:00]} 51. Rc2 {[%emt 0:00:09]} Rb5 {[%emt 0:00:07]} 52. d4 {[%emt 0:00:08]} Bxd4 {[%emt 0:00:24]} 53. Rxc6 {[%emt 0:00:11]} Rb2+ {[%emt 0:00:07]} 54. Kh1 {[%emt 0:00:14]} Rb6 {[%emt 0:01:32]} 55. Rc8+ {[%emt 0:00:05]} Kg7 {[%emt 0:00:08]} 56. Rc7+ {[%emt 0:00:02]} 1-0

[Event "Amsterdam Chess Open 2024"]
[Site "Amsterdam"]
[Date "2024.11.03"]
[Round "6.15"]
[White "Straat, Evert-Jan"]
[Black "Teianu, Maxim"]
[Result "1/2-1/2"]
[ECO "A84"]
[WhiteElo "1955"]
[BlackElo "1878"]
[Annotator "RC"]
[PlyCount "155"]
[EventDate "2024.10.31"]
[EventType "swiss"]
[EventCountry "NED"]
[SourceTitle "playchess.com"]
[Source "ChessBase"]
[SourceQuality "1"]
[TimeControl "5400+30"]

1. d4 {[%emt 0:00:05]} e6 {[%emt 0:00:06]} 2. c4 {[%emt 0:00:19]} b6 {[%emt 0:00:17]} 3. Nc3 {[%emt 0:01:39]} Bb7 {[%emt 0:00:08]} 4. a3 {[%emt 0:00:33]} f5 {[%emt 0:00:11]} 5. Nf3 {[%emt 0:00:56]} Nf6 {[%emt 0:00:33]} 6. g3 {[%emt 0:00:22]} Be7 {[%emt 0:00:20]} 7. Bg2 {[%emt 0:00:11]} O-O {[%emt 0:00:28]} 8. d5 {[%emt 0:05:51]} Na6 {[%emt 0:00:34]} 9. O-O {[%emt 0:06:59]} Nc5 {[%emt 0:00:54]} 10. Nd4 {[%emt 0:05:32]} Qc8 {[%emt 0:04:00]} 11. Ndb5 {[%emt 0:17:01]} a6 {[%emt 0:05:25]} 12. Nd4 {[%emt 0:01:07]} Nfe4 {[%emt 0:02:16]} 13. Nxe4 {[%emt 0:01:20]} Nxe4 {[%emt 0:00:11]} 14. f3 {[%emt 0:01:17]} Nd6 {[%emt 0:00:56]} 15. dxe6 {[%emt 0:06:36]} dxe6 {[%emt 0:02:00]} 16. Qc2 {[%emt 0:02:50]} Bf6 {[%emt 0:04:01]} 17. Be3 {[%emt 0:00:58]} c5 {[%emt 0:01:09]} 18. Nb3 {[%emt 0:00:13]} e5 {[%emt 0:01:00]} 19. a4 {[%emt 0:02:26]} Qe6 {[%emt 0:00:46]} 20. Rac1 {[%emt 0:01:43]} f4 {[%emt 0:04:56]} 21. Bf2 {[%emt 0:06:59]} fxg3 {[%emt 0:04:45]} 22. Bxg3 {[%emt 0:00:42]} e4 {[%emt 0:00:18]} 23. Bxd6 {[%emt 0:01:06]} Qxd6 {[%emt 0:00:11]} 24. Rcd1 {[%emt 0:01:38]} Qe5 {[%emt 0:06:24]} 25. fxe4 {[%emt 0:01:08]} Bg5 {[%emt 0:01:01]} 26. Qc3 {[%emt 0:07:39]} Qc7 {[%emt 0:02:32]} 27. Rf5 {[%emt 0:02:39]} Bf4 {[%emt 0:02:02]} 28. Qh3 {[%emt 0:01:11]} Rxf5 {[%emt 0:04:21]} 29. exf5 {[%emt 0:01:30]} Re8 {[%emt 0:00:11]} 30. Bxb7 {[%emt 0:06:44]} Qxb7 {[%emt 0:00:26]} 31. Qf3 {[%emt 0:02:30]} Qxf3 {[%emt 0:01:31]} 32. exf3 {[%emt 0:00:01]} Re2 {[%emt 0:00:16]} 33. Nc1 {[%emt 0:00:50]} Bxc1 {[%emt 0:00:17]} 34. Rxc1 {[%emt 0:00:02]} Rxb2 {[%emt 0:00:06]} 35. a5 {[%emt 0:01:16]} Kf7 {[%emt 0:00:25]} 36. axb6 {[%emt 0:00:07]} Rxb6 {[%emt 0:00:04]} 37. Rd1 {[%emt 0:00:39]} Rb4 {[%emt 0:00:37]} 38. Ra1 {[%emt 0:00:05]} Kf6 {[%emt 0:00:12]} 39. Rxa6+ {[%emt 0:00:27]} Kxf5 {[%emt 0:00:05]} 40. Ra7 {[%emt 0:00:05]} Kg6 {[%emt 0:00:19]} 41. Ra6+ {[%emt 0:00:18]} Kh5 {[%emt 0:00:14]} 42. Ra7 {[%emt 0:00:04]} Kh6 {[%emt 0:00:06]} 43. Ra6+ {[%emt 0:00:20]} g6 {[%emt 0:00:06]} 44. Kg2 {[%emt 0:00:31]} Rxc4 {[%emt 0:00:18]} 45. Ra7 {[%emt 0:00:49]} Rc1 {[%emt 0:00:38]} 46. Rc7 {[%emt 0:00:27]} c4 {[%emt 0:00:06]} 47. h4 {[%emt 0:00:25]} c3 {[%emt 0:00:07]} 48. Kh2 {[%emt 0:00:09]} c2 {[%emt 0:00:04]} 49. Kg2 {[%emt 0:00:06]} g5 {[%emt 0:00:08]} 50. hxg5+ {[%emt 0:01:09]} Kxg5 {[%emt 0:00:07]} 51. Rc4 {[%emt 0:01:01]} Kf5 {[%emt 0:00:41]} 52. Kh2 {[%emt 0:00:14]} Ke5 {[%emt 0:00:05]} 53. Kg2 {[%emt 0:00:30]} Kd5 {[%emt 0:00:19]} 54. Rc8 {[%emt 0:00:55]} Kd4 {[%emt 0:00:20]} 55. Rd8+ {[%emt 0:00:25]} Ke3 {[%emt 0:00:03]} 56. Re8+ {[%emt 0:00:07]} Kf4 {[%emt 0:00:04]} 57. Re4+ {[%emt 0:00:09]} Kf5 {[%emt 0:00:07]} 58. Rc4 {[%emt 0:00:04]} h5 {[%emt 0:00:18]} 59. Kh2 {[%emt 0:00:15]} h4 {[%emt 0:00:16]} 60. Kg2 {[%emt 0:00:31]} h3+ {[%emt 0:00:25]} 61. Kh2 {[%emt 0:00:06]} Ke5 {[%emt 0:00:05]} 62. f4+ {[%emt 0:01:07]} Kf5 {[%emt 0:00:09]} 63. Rc8 {[%emt 0:00:05]} Kxf4 {[%emt 0:00:04]} 64. Rf8+ {[%emt 0:00:12]} Ke5 {[%emt 0:00:04]} 65. Re8+ {[%emt 0:00:22]} Kd6 {[%emt 0:00:13]} 66. Rc8 {[%emt 0:00:05]} Kd7 {[%emt 0:00:30]} 67. Rc3 {[%emt 0:00:07]} Ke6 {[%emt 0:00:29]} 68. Rc8 {[%emt 0:00:06]} Ke7 {[%emt 0:00:35]} 69. Rc3 {[%emt 0:00:09]} Kd7 {[%emt 0:00:47]} 70. Rc4 {[%emt 0:00:06]} Kd6 {[%emt 0:00:57]} 71. Rc8 {[%emt 0:00:06]} Kd5 {[%emt 0:00:03]} 72. Rd8+ {[%emt 0:00:10]} Kc5 {[%emt 0:00:03]} 73. Rc8+ {[%emt 0:00:05]} Kb6 {[%emt 0:00:03]} 74. Rc3 {[%emt 0:00:23]} Kb5 {[%emt 0:00:05]} 75. Rc8 {[%emt 0:00:08]} Kb4 {[%emt 0:00:03]} 76. Rc7 {[%emt 0:00:10]} Kb3 {[%emt 0:00:17]} 77. Rb7+ {[%emt 0:00:10]} Kc3 {[%emt 0:00:41]} 78. Rc7+ {[%emt 0:00:06]} 1/2-1/2

[Event "Amsterdam Chess Open 2024"]
[Site "Amsterdam"]
[Date "2024.11.03"]
[Round "6.16"]
[White "Krylov, Philippe"]
[Black "Makhmud, Adi"]
[Result "1-0"]
[ECO "D31"]
[WhiteElo "1950"]
[BlackElo "1941"]
[Annotator "RC"]
[PlyCount "99"]
[EventDate "2024.10.31"]
[EventType "swiss"]
[EventCountry "NED"]
[SourceTitle "playchess.com"]
[Source "ChessBase"]
[SourceQuality "1"]
[TimeControl "5400+30"]

1. d4 {[%emt 0:01:49]} d5 {[%emt 0:01:47]} 2. c4 {[%emt 0:00:00]} e6 {[%emt 0:00:07]} 3. Nc3 {[%emt 0:00:00]} a6 {[%emt 0:00:06]} 4. cxd5 {[%emt 0:00:00]} exd5 {[%emt 0:00:03]} 5. Bf4 {[%emt 0:00:00]} Nf6 {[%emt 0:00:30]} 6. e3 {[%emt 0:00:00]} Bd6 {[%emt 0:00:57]} 7. Bxd6 {[%emt 0:00:01]} Qxd6 {[%emt 0:00:04]} 8. Bd3 {[%emt 0:00:08]} O-O {[%emt 0:01:48]} 9. Qc2 {[%emt 0:03:14]} Be6 {[%emt 0:00:37]} 10. Nf3 {[%emt 0:02:04]} Nbd7 {[%emt 0:01:35]} 11. h3 {[%emt 0:00:42]} c5 {[%emt 0:01:35]} 12. dxc5 {[%emt 0:00:51]} Nxc5 {[%emt 0:00:16]} 13. Nd4 {[%emt 0:00:27]} Rac8 {[%emt 0:04:29]} 14. O-O {[%emt 0:09:50]} b5 {[%emt 0:08:28]} 15. a3 {[%emt 0:11:08]} Qd7 {[%emt 0:18:23]} 16. Qe2 {[%emt 0:12:12]} Nce4 {[%emt 0:07:09]} 17. Bxe4 {[%emt 0:00:45]} dxe4 {[%emt 0:00:40]} 18. Nxe6 {[%emt 0:00:11]} Qxe6 {[%emt 0:00:10]} 19. Rfd1 {[%emt 0:01:09]} Rfd8 {[%emt 0:08:10]} 20. Rxd8+ {[%emt 0:01:04]} Rxd8 {[%emt 0:00:07]} 21. Rd1 {[%emt 0:00:08]} Rd6 {[%emt 0:23:37]} 22. Rxd6 {[%emt 0:04:49]} Qxd6 {[%emt 0:00:07]} 23. Qd1 {[%emt 0:01:33]} Qxd1+ {[%emt 0:00:20]} 24. Nxd1 {[%emt 0:00:02]} Nd5 {[%emt 0:00:20]} 25. Kf1 {[%emt 0:01:47]} Kf8 {[%emt 0:00:48]} 26. Ke2 {[%emt 0:00:08]} Ke7 {[%emt 0:00:34]} 27. Kd2 {[%emt 0:01:00]} Kd6 {[%emt 0:00:28]} 28. Nc3 {[%emt 0:03:58]} f5 {[%emt 0:02:36]} 29. Nxd5 {[%emt 0:04:56]} Kxd5 {[%emt 0:00:04]} 30. Kc3 {[%emt 0:00:18]} a5 {[%emt 0:00:09]} 31. b3 {[%emt 0:00:05]} g6 {[%emt 0:13:47]} 32. g3 {[%emt 0:03:14]} h6 {[%emt 0:03:19]} 33. h4 {[%emt 0:02:26]} g5 {[%emt 0:01:56]} 34. hxg5 {[%emt 0:02:10]} hxg5 {[%emt 0:00:05]} 35. a4 {[%emt 0:01:08]} Kc5 {[%emt 0:01:06]} 36. axb5 {[%emt 0:00:45]} Kxb5 {[%emt 0:00:07]} 37. Kc2 {[%emt 0:00:39]} Kb4 {[%emt 0:00:59]} 38. Kb2 {[%emt 0:00:17]} g4 {[%emt 0:00:07]} 39. Kc2 {[%emt 0:00:14]} Ka3 {[%emt 0:00:47]} 40. Kc3 {[%emt 0:00:08]} Ka2 {[%emt 0:00:04]} 41. b4 {[%emt 0:02:21]} axb4+ {[%emt 0:00:14]} 42. Kxb4 {[%emt 0:00:05]} Kb2 {[%emt 0:00:01]} 43. Kc4 {[%emt 0:00:02]} Kc2 {[%emt 0:00:04]} 44. Kd4 {[%emt 0:00:02]} Kd2 {[%emt 0:00:04]} 45. Ke5 {[%emt 0:00:04]} Ke2 {[%emt 0:00:01]} 46. Kxf5 {[%emt 0:00:06]} Kf3 {[%emt 0:00:17]} 47. Kg5 {[%emt 0:00:06]} Kxf2 {[%emt 0:00:02]} 48. Kf4 {[%emt 0:00:02]} Kg2 {[%emt 0:01:05]} 49. Kxg4 {[%emt 0:00:06]} Kf2 {[%emt 0:00:05]} 50. Kf4 {[%emt 0:00:04]} 1-0